fUST/lending_fUST_20250124
["ID","MTS","AMOUNT","RATE_DAILY","PERIOD"]
[350164082,1737664241540,-4239.24,0.00019863,3]
[350164084,1737664241549,-500.0,0.00019863,3]
[350164086,1737664241559,-537.08,0.00019863,3]
[350164087,1737664241568,-559.35,0.00019863,3]
[350164089,1737664241577,-1719.36,0.00019863,3]
[350164091,1737664241587,-603.16,0.00019863,3]
[350164093,1737664241596,-500.0,0.00019863,3]
[350164095,1737664241607,-279.54,0.00019863,3]
[350164097,1737664241616,-500.0,0.00019863,3]
[350164098,1737664241625,-867.65759117,0.000199,2]
[350164100,1737664241634,-153.0,0.00019918,2]
[350164102,1737664241643,-215.2923755,0.00019918,2]
[350164104,1737664241652,-215.2923755,0.00019918,2]
[350164105,1737664241662,-153.0,0.00019918,2]
[350164107,1737664241671,-153.0,0.00019918,2]
[350164109,1737664241680,-215.2923755,0.00019918,2]
[350164111,1737664241689,-215.2923755,0.00019918,2]
[350164113,1737664241699,-153.0,0.00019918,2]
[350164114,1737664241709,-587.0,0.00019981,2]
[350164116,1737664241718,-160.0,0.0002,2]
[350164118,1737664241728,-735.7969783,0.0002,2]
[350164120,1737664241738,-599.09888584,0.0002,2]
[350164122,1737664241754,-966.53,0.0002,2]
[350164123,1737664241764,-500.0,0.0002,3]
[350164125,1737664241774,-500.0,0.0002,3]
[350164127,1737664241785,-160.0,0.0002,3]
[350164129,1737664241795,-160.0,0.0002,3]
[350164131,1737664241806,-502.19,0.0002,3]
[350164132,1737664241816,-517.57,0.0002,3]
[350164134,1737664241828,-3283.0,0.0002,3]
[350164136,1737664241840,-1630.77,0.0002,3]
[350164138,1737664241851,-1293.86,0.0002,3]
[350164140,1737664241867,-500.0,0.0002,3]
[350164141,1737664241877,-500.0,0.0002,3]
[350164143,1737664241887,-500.0,0.0002,3]
[350164145,1737664241898,-641.98,0.0002,3]
[350164147,1737664241908,-500.0,0.0002,3]
[350164148,1737664241918,-4239.24,0.0002,3]
[350164150,1737664241928,-500.0,0.0002,3]
[350164152,1737664241942,-559.35,0.0002,3]
[350164154,1737664241953,-1719.36,0.0002,3]
[350164156,1737664241963,-500.0,0.0002,3]
[350164157,1737664241972,-603.16,0.0002,3]
[350164159,1737664241982,-500.0,0.0002,3]
[350164161,1737664241991,-867.65759107,0.00020038,2]
[350164163,1737664242008,-555.70474699,0.000201,2]
[350164165,1737664242018,-500.0,0.00020136,3]
[350164166,1737664242027,-502.19,0.00020136,3]
[350164168,1737664242037,-517.57,0.00020136,3]
[350164170,1737664242046,-3283.0,0.00020136,3]
[350164172,1737664242056,-1630.77,0.00020136,3]
[350164174,1737664242065,-1293.86,0.00020136,3]
[350164176,1737664242074,-500.0,0.00020136,3]
[350164177,1737664242083,-500.0,0.00020136,3]
[350164179,1737664242092,-500.0,0.00020136,3]
[350164181,1737664242101,-641.98,0.00020136,3]
[350164183,1737664242111,-500.0,0.00020136,3]
[350164185,1737664242120,-4239.24,0.00020136,3]
[350164187,1737664242130,-500.0,0.00020136,3]
[350164188,1737664242139,-559.35,0.00020136,3]
[350164190,1737664242148,-1719.36,0.00020136,3]
[350164192,1737664242158,-603.16,0.00020136,3]
[350164194,1737664242167,-500.0,0.00020136,3]
[350164196,1737664242176,-500.0,0.00020136,3]
[350164197,1737664242185,-424.717,0.0002017,2]
[350164199,1737664242194,-867.65759107,0.00020176,2]
[350164201,1737664242204,-156.51568946,0.00020208,2]
[350164203,1737664242213,-500.0,0.00020273,3]
[350164205,1737664242223,-502.19,0.00020273,3]
[350164207,1737664242232,-517.57,0.00020273,3]
[350164209,1737664242242,-827.72897007,0.00020273,3]
[350164211,1737664242257,-1887.82706016,0.00020273,3]
[350164213,1737664242268,-567.44396977,0.00020273,3]
[350164215,1737664242278,-1432.55603023,0.00020273,3]
[350164218,1737664242301,-500.0,0.00019178,2]
[350164220,1737664242310,-198.21396977,0.00020273,3]
[350164222,1737664242320,-1293.86,0.00020273,3]
[350164224,1737664242329,-500.0,0.00020273,3]
[350164225,1737664242339,-500.0,0.00020273,3]
[350164227,1737664242348,-321.00565247,0.00020273,3]
[350164229,1737664242360,-178.99434753,0.00020273,3]
[350164231,1737664242369,-641.98,0.00020273,3]
[350164233,1737664242378,-500.0,0.00020273,3]
[350164235,1737664242387,-4239.24,0.00020273,3]
[350164237,1737664242398,-500.0,0.00020273,3]
[350164239,1737664242408,-559.35,0.00020273,3]
[350164241,1737664242416,-1719.36,0.00020273,3]
[350164242,1737664242426,-500.0,0.00020273,3]
[350164244,1737664242436,-603.16,0.00020273,3]
[350164246,1737664242445,-500.0,0.00020273,3]
[350164248,1737664242455,-867.65759107,0.00020314,2]
[350164250,1737664242464,-500.0,0.0002038,2]
[350164252,1737664242474,-500.0,0.0002041,3]
[350164254,1737664242483,-502.19,0.0002041,3]
[350164256,1737664242492,-517.57,0.0002041,3]
[350164258,1737664242501,-3283.0,0.0002041,3]
[350164259,1737664242511,-1630.77,0.0002041,3]
[350164261,1737664242520,-1293.86,0.0002041,3]
[350164263,1737664242530,-500.0,0.0002041,3]
[350164265,1737664242541,-500.0,0.0002041,3]
[350164267,1737664242552,-500.0,0.0002041,3]
[350164269,1737664242561,-641.98,0.0002041,3]
[350164271,1737664242571,-500.0,0.0002041,3]
[350164273,1737664242580,-4239.24,0.0002041,3]
[350164274,1737664242589,-500.0,0.0002041,3]
[350164276,1737664242598,-559.35,0.0002041,3]
[350164278,1737664242607,-1719.36,0.0002041,3]
[350164280,1737664242617,-387.75200779,0.0002041,3]
[350164282,1737664242626,-603.16,0.0002041,3]
[350164284,1737664242635,-500.0,0.0002041,3]
[350164286,1737664242644,-355.301264,0.00020447,2]
[350164288,1737664242654,-867.65759107,0.00020452,2]
[350164290,1737664242663,-500.0,0.00020547,3]
[350164291,1737664242672,-502.19,0.00020547,3]
[350164293,1737664242682,-517.57,0.00020547,3]
[350164295,1737664242691,-3283.0,0.00020547,3]
[350164297,1737664242700,-1630.77,0.00020547,3]
[350164299,1737664242709,-1293.86,0.00020547,3]
[350164300,1737664242718,-500.0,0.00020547,3]
[350164302,1737664242727,-500.0,0.00020547,3]
[350164304,1737664242737,-500.0,0.00020547,3]
[350164306,1737664242746,-641.98,0.00020547,3]
[350164307,1737664242756,-418.45,0.00020547,3]
[350164309,1737664242765,-4239.24,0.00020547,3]
[350164311,1737664242776,-500.0,0.00020547,3]
[350164313,1737664242785,-559.35,0.00020547,3]
[350164315,1737664242795,-1719.36,0.00020547,3]
[350164317,1737664242804,-603.16,0.00020547,3]
[350164319,1737664242814,-500.0,0.00020547,3]
[350164320,1737664242823,-156.51568946,0.00020584,2]
[350164322,1737664242833,-867.65759107,0.0002059,2]
[350164324,1737664242842,-12493.402254,0.00020644,2]
[350164326,1737664242852,-643.65724472,0.00020684,3]
[350164328,1737664242862,-502.19,0.00020684,3]
[350164329,1737664242871,-517.57,0.00020684,3]
[350164331,1737664242880,-3283.0,0.00020684,3]
[350164333,1737664242889,-1630.77,0.00020684,3]
[350164335,1737664242898,-1293.86,0.00020684,3]
[350164337,1737664242907,-500.0,0.00020684,3]
[350164338,1737664242916,-500.0,0.00020684,3]
[350164340,1737664242925,-500.0,0.00020684,3]
[350164342,1737664242935,-641.98,0.00020684,3]
[350164344,1737664242944,-4239.24,0.00020684,3]
[350164346,1737664242953,-500.0,0.00020684,3]
[350164348,1737664242962,-559.35,0.00020684,3]
[350164349,1737664242972,-1719.36,0.00020684,3]
[350164351,1737664242981,-603.16,0.00020684,3]
[350164353,1737664242990,-500.0,0.00020684,3]
[350164356,1737664242999,-867.65759107,0.00020728,2]
[350164359,1737664243008,-153.0,0.0002074,2]
[350164361,1737664243018,-151.0,0.00020765,2]
[350164362,1737664243027,-151.0,0.00020765,2]
[350164364,1737664243036,-151.0,0.00020765,2]
[350164366,1737664243045,-151.0,0.00020765,2]
[350164368,1737664243055,-10116.63343998,0.00020765,3]
[350164370,1737664243064,-6799.12329011,0.000208,2]
[350164373,1737664243074,-151.0,0.00020821,2]
[350164375,1737664243083,-502.19,0.00020821,3]
[350164377,1737664243094,-517.57,0.00020821,3]
[350164380,1737664243103,-3283.0,0.00020821,3]
[350164383,1737664243113,-151.0,0.00020821,2]
[350164385,1737664243122,-151.0,0.00020821,2]
[350164387,1737664243132,-151.0,0.00020821,2]
[350164390,1737664243142,-1630.77,0.00020821,3]
[350164393,1737664243151,-1293.86,0.00020821,3]
[350164395,1737664243161,-500.0,0.00020821,3]
[350164397,1737664243171,-500.0,0.00020821,3]
[350164400,1737664243180,-508.01224481,0.00020821,3]
[350164430,1737664243279,-641.98,0.00020821,3]
[350164433,1737664243289,-4239.24,0.00020821,3]
[350164435,1737664243299,-500.0,0.00020821,3]
[350164437,1737664243309,-559.35,0.00020821,3]
[350164439,1737664243319,-1719.36,0.00020821,3]
[350164441,1737664243328,-603.16,0.00020821,3]
[350164442,1737664243338,-500.0,0.00020821,3]
[350164443,1737664243347,-201.600458,0.00020822,2]
[350164444,1737664243356,-867.65759107,0.00020866,2]
[350164445,1737664243366,-1000.0,0.00020895,2]
[350164446,1737664243375,-151.0,0.000209,2]
[350164447,1737664243384,-2875.06790277,0.000209,2]
[350164448,1737664243393,-2875.06790277,0.000209,2]
[350164449,1737664243402,-2875.06790277,0.000209,2]
[350164450,1737664243411,-2875.06790277,0.000209,2]
[350164451,1737664243420,-1000.0,0.00020902,2]
[350164452,1737664243429,-1000.0,0.00020917,2]
[350164453,1737664243438,-151.0,0.00020917,2]
[350164454,1737664243447,-151.0,0.00020917,2]
[350164455,1737664243456,-151.0,0.00020917,2]
[350164456,1737664243466,-1000.0,0.00020928,2]
[350164457,1737664243475,-1000.0,0.00020952,2]
[350164458,1737664243484,-502.19,0.00020958,3]
[350164459,1737664243493,-517.57,0.00020958,3]
[350164460,1737664243504,-3283.0,0.00020958,3]
[350164461,1737664243519,-1630.77,0.00020958,3]
[350164462,1737664243529,-1293.86,0.00020958,3]
[350164463,1737664243539,-500.0,0.00020958,3]
[350164464,1737664243550,-500.0,0.00020958,3]
[350164465,1737664243560,-641.98,0.00020958,3]
[350164466,1737664243570,-4239.24,0.00020958,3]
[350164468,1737664243579,-500.0,0.00020958,3]
[350164469,1737664243590,-559.35,0.00020958,3]
[350164471,1737664243600,-1719.36,0.00020958,3]
[350164473,1737664243610,-603.16,0.00020958,3]
[350164475,1737664243619,-500.0,0.00020958,3]
[350164477,1737664243628,-249.26,0.00020962,2]
[350164479,1737664243638,-867.65759107,0.00021003,2]
[350164481,1737664243647,-1000.0,0.00021034,2]
[350164483,1737664243656,-802.86851086,0.00021037,2]
[350164485,1737664243665,-1000.0,0.00021044,2]
[350164487,1737664243674,-1351.72209128,0.00021076,2]
[350164496,1737664243749,-5346.37980558,0.00021076,2]
[350164499,1737664243762,-2503.50761345,0.00021076,2]
[350164501,1737664243775,-2405.41226777,0.00021076,2]
[350164505,1737664243787,-886.38047592,0.00021076,2]
[350164508,1737664243796,-151.321651,0.00021095,2]
[350164510,1737664243805,-502.19,0.00021095,3]
[350164512,1737664243815,-38.1009597,0.00021095,3]
[350164526,1737664243944,-29.98991976,0.00019918,2]
[350164529,1737664243960,-500.0,0.00019178,2]
[350164531,1737664243970,-133.63518484,0.00019918,2]
[350164533,1737664243980,-479.4690403,0.00021095,3]
[350164534,1737664243989,-3283.0,0.00021095,3]
[350164537,1737664243999,-1630.77,0.00021095,3]
[350164538,1737664244008,-1293.86,0.00021095,3]
[350164541,1737664244019,-500.0,0.00021095,3]
[350164542,1737664244029,-500.0,0.00021095,3]
[350164545,1737664244040,-641.98,0.00021095,3]
[350164547,1737664244051,-4239.24,0.00021095,3]
[350164549,1737664244061,-500.0,0.00021095,3]
[350164551,1737664244072,-559.35,0.00021095,3]
[350164553,1737664244083,-1719.36,0.00021095,3]
[350164554,1737664244094,-253.72400543,0.00021095,3]
[350164762,1737664246886,-248.216203,0.00020684,2]
[350164764,1737664246896,-349.43599457,0.00021095,3]
[350164766,1737664246907,-353.19,0.00021095,3]
[350164767,1737664246916,-530.41766182,0.00021141,2]
[350164770,1737664246929,-337.23992925,0.00021141,2]
[350164772,1737664246939,-213.52003372,0.00021179,4]
[350164774,1737664246948,-517.57,0.00021232,3]
[350164776,1737664246958,-3283.0,0.00021232,3]
[350164778,1737664246967,-1630.77,0.00021232,3]
[350164780,1737664246977,-1293.86,0.00021232,3]
[350164782,1737664246987,-500.0,0.00021232,3]
[350164784,1737664246996,-500.0,0.00021232,3]
[350164786,1737664247006,-641.98,0.00021232,3]
[350164788,1737664247016,-4239.24,0.00021232,3]
[350164789,1737664247026,-500.0,0.00021232,3]
[350164791,1737664247035,-559.35,0.00021232,3]
[350164793,1737664247045,-1719.36,0.00021232,3]
[350164795,1737664247055,-603.16,0.00021232,3]
[350164797,1737664247064,-3000.0,0.0002124,2]
[350164800,1737664247074,-3818.008219,0.0002125,2]
[350164802,1737664247083,-500.0,0.0002126,2]
[350164803,1737664247093,-153.0,0.0002126,2]
[350164806,1737664247103,-867.65759107,0.00021279,2]
[350164807,1737664247112,-517.57,0.00021369,3]
[350164809,1737664247121,-150.05,0.00021369,3]
[350164811,1737664247131,-151.0,0.00021369,2]
[350164814,1737664247141,-3283.0,0.00021369,3]
[350164816,1737664247150,-1630.77,0.00021369,3]
[350164818,1737664247160,-1293.86,0.00021369,3]
[350164820,1737664247170,-500.0,0.00021369,3]
[350164822,1737664247178,-500.0,0.00021369,3]
[350164824,1737664247188,-641.98,0.00021369,3]
[350164826,1737664247198,-4239.24,0.00021369,3]
[350164827,1737664247210,-500.0,0.00021369,3]
[350164830,1737664247220,-559.35,0.00021369,3]
[350164832,1737664247231,-1719.36,0.00021369,3]
[350164834,1737664247241,-603.16,0.00021369,3]
[350164836,1737664247252,-2019.48,0.00021387,2]
[350164838,1737664247262,-867.65759107,0.00021417,2]
[350164840,1737664247273,-151.0,0.00021418,2]
[350164842,1737664247282,-300.0,0.000215,9]
[350164843,1737664247292,-517.57,0.00021506,3]
[350164845,1737664247303,-3283.0,0.00021506,3]
[350164848,1737664247313,-1630.77,0.00021506,3]
[350164850,1737664247324,-1293.86,0.00021506,3]
[350164852,1737664247335,-356.97484573,0.00021506,3]
[350164853,1737664247345,-500.0,0.00021506,3]
[350164855,1737664247356,-641.98,0.00021506,3]
[350164857,1737664247369,-4239.24,0.00021506,3]
[350164859,1737664247379,-500.0,0.00021506,3]
[350164861,1737664247390,-559.35,0.00021506,3]
[350164863,1737664247401,-1719.36,0.00021506,3]
[350164866,1737664247411,-603.16,0.00021506,3]
[350164867,1737664247422,-867.65759107,0.00021555,2]
[350164869,1737664247434,-7361.0,0.000216,4]
[350164871,1737664247445,-151.0,0.000216,2]
[350164873,1737664247456,-769.84338376,0.00021608,2]
[350164876,1737664247472,-517.57,0.00021643,3]
[350164878,1737664247483,-3283.0,0.00021643,3]
[350164880,1737664247494,-1630.77,0.00021643,3]
[350164882,1737664247507,-1293.86,0.00021643,3]
[350164884,1737664247532,-500.0,0.00021643,3]
[350164887,1737664247544,-641.98,0.00021643,3]
[350164888,1737664247555,-4239.24,0.00021643,3]
[350164890,1737664247566,-500.0,0.00021643,3]
[350164892,1737664247577,-515.95876877,0.00021643,3]
[350165507,1737664799606,329.183386,0.00013973,2]
[350165509,1737664907626,476.0,0.00024,120]
[350165510,1737665225122,-161.280366,0.00017808,2]
[350165511,1737665225148,-1299.96065436,0.000179,2]
[350165746,1737665436965,-1124.12516536,0.00017833,2]
[350165748,1737665436976,-260.225,0.00017833,2]
[350165753,1737665437019,-102.03634924,0.00017833,2]
[350165755,1737665437028,-60.32376413,0.00017845,2]
[350165761,1737665438873,-189.67623587,0.00017845,2]
[350165762,1737665438883,-386.209727,0.00017845,2]
[350165763,1737665438892,-201.02,0.00018,2]
[350165764,1737665438902,-300.0,0.00018206,2]
[350165765,1737665438912,-10277.8034442,0.00018207,2]
[350165766,1737665438921,-302.8788636,0.00019,2]
[350165767,1737665438930,-302.93942121,0.00019,2]
[350165768,1737665438940,-109.016547,0.00019068,2]
[350165780,1737665440832,-390.983453,0.00019068,2]
[350165782,1737665440842,-963.51881558,0.00019077,2]
[350165784,1737665440852,-162.65,0.00019177,2]
[350165786,1737665440862,-455.87882951,0.00019177,2]
[350165788,1737665440871,-500.0,0.00019177,2]
[350165789,1737665440880,-500.0,0.00019177,2]
[350165791,1737665440890,-500.0,0.00019177,2]
[350165794,1737665440900,-500.0,0.00019177,2]
[350165796,1737665440910,-500.0,0.00019177,2]
[350165798,1737665440920,-256.6284035,0.00019177,2]
[350165800,1737665440930,-500.0,0.00019177,2]
[350165802,1737665440939,-500.0,0.00019177,2]
[350165804,1737665440948,-500.0,0.00019177,2]
[350165806,1737665440958,-500.0,0.00019177,2]
[350165808,1737665440968,-500.0,0.00019177,2]
[350165810,1737665440978,-470.76505538,0.00019177,2]
[350165812,1737665440987,-228.25486098,0.00019177,2]
[350165814,1737665440996,-405.29335873,0.00019177,2]
[350165816,1737665441006,-500.0,0.00019177,2]
[350165818,1737665441015,-411.11740852,0.00019177,2]
[350165821,1737665441025,-500.0,0.00019177,2]
[350165824,1737665441034,-500.0,0.00019177,2]
[350165827,1737665441043,-500.0,0.00019177,2]
[350165830,1737665441053,-500.0,0.00019177,2]
[350165833,1737665441062,-500.0,0.00019177,2]
[350165836,1737665441071,-500.0,0.00019177,2]
[350165839,1737665441080,-500.0,0.00019177,2]
[350165842,1737665441090,-500.0,0.00019177,2]
[350165845,1737665441099,-500.0,0.00019177,2]
[350165848,1737665441109,-189.9632214,0.00019177,2]
[350165851,1737665441118,-248.4969224,0.00019177,2]
[350165853,1737665441128,-500.0,0.00019177,2]
[350165855,1737665441137,-500.0,0.00019177,2]
[350165857,1737665441146,-500.0,0.00019177,2]
[350165859,1737665441155,-500.0,0.00019177,2]
[350165861,1737665441164,-500.0,0.00019177,2]
[350165863,1737665441173,-500.0,0.00019177,2]
[350165865,1737665441182,-500.0,0.00019177,2]
[350165867,1737665441191,-500.0,0.00019177,2]
[350165869,1737665441200,-500.0,0.00019177,2]
[350165871,1737665441215,-500.0,0.00019177,2]
[350165873,1737665441225,-352.0,0.00019177,2]
[350165875,1737665441234,-500.0,0.00019177,2]
[350165877,1737665441243,-500.0,0.00019177,2]
[350165879,1737665441252,-500.0,0.00019177,2]
[350165881,1737665441277,-500.0,0.00019177,2]
[350165883,1737665441287,-500.0,0.00019177,2]
[350165885,1737665441297,-500.0,0.00019177,2]
[350165887,1737665441308,-500.0,0.00019177,2]
[350165889,1737665441317,-250.0,0.00019177,2]
[350165891,1737665441327,-500.0,0.00019177,2]
[350165893,1737665441336,-500.0,0.00019177,2]
[350165895,1737665441346,-500.0,0.00019177,2]
[350165897,1737665441356,-500.0,0.00019177,2]
[350165899,1737665441365,-500.0,0.00019177,2]
[350165901,1737665441375,-500.0,0.00019177,2]
[350165903,1737665441386,-500.0,0.00019177,2]
[350165905,1737665441396,-500.0,0.00019177,2]
[350165907,1737665441406,-500.0,0.00019177,2]
[350165908,1737665441416,-500.0,0.00019177,2]
[350165909,1737665441426,-500.0,0.00019177,2]
[350165910,1737665441435,-500.0,0.00019177,2]
[350165911,1737665441445,-500.0,0.00019177,2]
[350165912,1737665441456,-500.0,0.00019177,2]
[350165913,1737665441466,-500.0,0.00019177,2]
[350165914,1737665441476,-500.0,0.00019177,2]
[350165915,1737665441486,-498.4969224,0.00019177,2]
[350165916,1737665441496,-500.0,0.00019177,2]
[350165917,1737665441507,-500.0,0.00019177,2]
[350165918,1737665441518,-500.0,0.00019177,2]
[350165919,1737665441528,-500.0,0.00019177,2]
[350165920,1737665441538,-500.0,0.00019177,2]
[350165921,1737665441548,-500.0,0.00019177,2]
[350165922,1737665441558,-500.0,0.00019177,2]
[350165923,1737665441567,-500.0,0.00019177,2]
[350165924,1737665441577,-457.77645928,0.00019177,2]
[350165926,1737665441587,-500.0,0.00019177,2]
[350165927,1737665441596,-246.5030776,0.00019177,2]
[350165929,1737665441606,-500.0,0.00019177,2]
[350165931,1737665441616,-500.0,0.00019177,2]
[350165933,1737665441626,-500.0,0.00019177,2]
[350165935,1737665441636,-500.0,0.00019178,2]
[350165937,1737665441646,-500.0,0.00019178,2]
[350165940,1737665441655,-579.24299282,0.00019178,2]
[350165941,1737665441664,-501.60172909,0.00019178,2]
[350165943,1737665441674,-500.0,0.00019178,2]
[350165946,1737665441684,-500.0,0.00019178,2]
[350165948,1737665441693,-500.0,0.00019178,2]
[350165950,1737665441703,-500.0,0.00019178,2]
[350165952,1737665441712,-500.0,0.00019178,2]
[350165954,1737665441722,-500.0,0.00019178,2]
[350165955,1737665441731,-500.0,0.00019178,2]
[350165958,1737665441741,-500.0,0.00019178,2]
[350165960,1737665441750,-500.0,0.00019178,2]
[350165962,1737665441759,-500.0,0.00019178,2]
[350165964,1737665441778,-500.0,0.00019178,2]
[350165965,1737665441794,-500.0,0.00019178,2]
[350165967,1737665441803,-500.0,0.00019178,2]
[350165970,1737665441813,-500.0,0.00019178,2]
[350165972,1737665441823,-500.0,0.00019178,2]
[350165974,1737665441832,-500.0,0.00019178,2]
[350165976,1737665441842,-501.11381639,0.00019178,2]
[350165978,1737665441852,-445.99444153,0.00019178,2]
[350165980,1737665441861,-500.0,0.00019178,2]
[350165982,1737665441871,-500.0,0.00019178,2]
[350165984,1737665441881,-423.77604798,0.00019178,2]
[350165986,1737665441890,-500.0,0.00019178,2]
[350165988,1737665441899,-500.0,0.00019178,2]
[350165990,1737665441909,-500.0,0.00019178,2]
[350165992,1737665441918,-500.0,0.00019178,2]
[350165994,1737665441927,-500.0,0.00019178,2]
[350165996,1737665441937,-500.0,0.00019178,2]
[350165998,1737665441947,-500.0,0.00019178,2]
[350166000,1737665441957,-500.0,0.00019178,2]
[350166015,1737665442084,-500.0,0.00019178,2]
[350166017,1737665442094,-500.0,0.00019178,2]
[350166019,1737665442103,-502.81211792,0.00019178,2]
[350166021,1737665442113,-500.0,0.00019178,2]
[350166023,1737665442122,-501.36182163,0.00019178,2]
[350166025,1737665442131,-501.44706547,0.00019178,2]
[350166027,1737665442141,-500.8246132,0.00019178,2]
[350166030,1737665442150,-312.09312949,0.00019178,2]
[350166032,1737665442159,-500.0,0.00019178,2]
[350166034,1737665442169,-500.0,0.00019178,2]
[350166036,1737665442178,-501.19345255,0.00019178,2]
[350166038,1737665442187,-500.0,0.00019178,2]
[350166040,1737665442197,-500.0,0.00019178,2]
[350166042,1737665442207,-533.61086748,0.00019178,2]
[350166044,1737665442217,-500.0,0.00019178,2]
[350166046,1737665442228,-504.13357422,0.00019178,2]
[350166048,1737665442237,-500.0,0.00019178,2]
[350166050,1737665442246,-502.46478449,0.00019178,2]
[350166052,1737665442257,-500.0,0.00019178,2]
[350166054,1737665442266,-165.10139446,0.00019178,2]
[350166056,1737665442292,-500.0,0.00019178,2]
[350166058,1737665442304,-500.0,0.00019178,2]
[350166060,1737665442314,-500.0,0.00019178,2]
[350166062,1737665442323,-502.30136159,0.00019178,2]
[350166064,1737665442332,-501.21424012,0.00019178,2]
[350166066,1737665442342,-500.0,0.00019178,2]
[350166067,1737665442351,-175.67655807,0.00019178,2]
[350166070,1737665442360,-500.0,0.00019178,2]
[350166072,1737665442371,-500.0,0.00019178,2]
[350166074,1737665442381,-500.0,0.00019178,2]
[350166075,1737665442391,-500.0,0.00019178,2]
[350166077,1737665442400,-194.46,0.00019178,2]
[350166080,1737665442410,-500.0,0.00019178,7]
[350166082,1737665442420,-500.0,0.00019178,2]
[350166084,1737665442429,-500.0,0.00019178,2]
[350166086,1737665442438,-500.0,0.00019178,2]
[350166088,1737665442448,-500.0,0.00019178,2]
[350166090,1737665442457,-500.0,0.00019178,2]
[350166092,1737665442467,-500.0,0.00019178,2]
[350166094,1737665442477,-500.0,0.00019178,2]
[350166096,1737665442487,-500.0,0.00019178,2]
[350166098,1737665442496,-500.0,0.00019178,2]
[350166100,1737665442506,-500.0,0.00019178,2]
[350166102,1737665442516,-513.61708257,0.00019178,2]
[350166104,1737665442526,-500.0,0.00019178,2]
[350166106,1737665442536,-500.0,0.00019178,2]
[350166108,1737665442546,-500.0,0.00019178,2]
[350166110,1737665442555,-500.0,0.00019178,2]
[350166111,1737665442564,-500.0,0.00019178,2]
[350166113,1737665442574,-500.0,0.00019178,2]
[350166115,1737665442583,-500.0,0.00019178,2]
[350166118,1737665442594,-500.0,0.00019178,2]
[350166120,1737665442604,-500.0,0.00019178,2]
[350166122,1737665442616,-500.0,0.00019178,2]
[350166124,1737665442625,-500.0,0.00019178,2]
[350166126,1737665442635,-500.0,0.00019178,2]
[350166128,1737665442645,-500.0,0.00019178,2]
[350166130,1737665442654,-500.0,0.00019178,2]
[350166132,1737665442664,-500.0,0.00019178,2]
[350166134,1737665442673,-500.0,0.00019178,2]
[350166136,1737665442682,-501.56494435,0.00019178,2]
[350166138,1737665442691,-500.0,0.00019178,2]
[350166140,1737665442701,-500.0,0.00019178,2]
[350166142,1737665442710,-467.60490307,0.00019178,2]
[350166144,1737665442720,-500.0,0.00019178,2]
[350166146,1737665442729,-500.0,0.00019178,2]
[350166147,1737665442738,-500.0,0.00019178,2]
[350166149,1737665442748,-500.0,0.00019178,2]
[350166151,1737665442757,-500.0,0.00019178,2]
[350166153,1737665442766,-500.0,0.00019178,2]
[350166156,1737665442792,-503.19229736,0.00019178,2]
[350166158,1737665442802,-500.0,0.00019178,2]